[Event "Late-Titled-Tuesday-Blitz-April-30-2024"]
[Site "Chess.com"]
[Date "2024.04.30"]
[Round "4"]
[White "NikitaShnadrygin"]
[Black "tgpgoat"]
[Result "0-1"]
[WhiteElo "2662"]
[BlackElo "2463"]
[TimeControl "180+1"]
[EndTime "14:40:45 PDT"]
[Termination "tgpgoat won by resignation"]

1. e4 {[%clk 0:03:00.9]} 1... c5 {[%clk 0:03:00.1]} 2. Nf3 {[%clk 0:02:59.1]}
2... e6 {[%clk 0:03:00.5]} 3. d4 {[%clk 0:02:58.1]} 3... cxd4 {[%clk 0:03:01.4]}
4. Nxd4 {[%clk 0:02:59]} 4... Nc6 {[%clk 0:03:01.8]} 5. Nc3 {[%clk 0:02:59.7]}
5... Qc7 {[%clk 0:03:01.6]} 6. Be3 {[%clk 0:02:59.8]} 6... a6 {[%clk 0:03:02]}
7. Be2 {[%clk 0:03:00.4]} 7... Nf6 {[%clk 0:03:02.2]} 8. O-O {[%clk 0:03:00.7]}
8... Bb4 {[%clk 0:03:02.1]} 9. Nxc6 {[%clk 0:02:57.7]} 9... bxc6 {[%clk
0:03:01.9]} 10. f4 {[%clk 0:02:58.3]} 10... Bxc3 {[%clk 0:03:01.3]} 11. bxc3
{[%clk 0:02:59.2]} 11... Nxe4 {[%clk 0:03:00.9]} 12. Bd4 {[%clk 0:02:46.6]}
12... O-O {[%clk 0:02:57.8]} 13. Bd3 {[%clk 0:02:45.3]} 13... d5 {[%clk
0:02:55.4]} 14. c4 {[%clk 0:02:27.4]} 14... Bb7 {[%clk 0:02:49.3]} 15. c5 {[%clk
0:02:16]} 15... f5 {[%clk 0:02:43.4]} 16. Rb1 {[%clk 0:02:11.2]} 16... a5 {[%clk
0:02:38.9]} 17. Rb6 {[%clk 0:02:08.4]} 17... Qe7 {[%clk 0:02:29]} 18. Bxe4
{[%clk 0:01:27.5]} 18... fxe4 {[%clk 0:02:26.9]} 19. Qe2 {[%clk 0:01:27.9]}
19... Rf7 {[%clk 0:02:23.5]} 20. g3 {[%clk 0:01:26.7]} 20... Qd7 {[%clk
0:02:12.3]} 21. Rfb1 {[%clk 0:01:23.5]} 21... Qc8 {[%clk 0:02:12.8]} 22. Qd2
{[%clk 0:01:17.5]} 22... Ba6 {[%clk 0:02:06.4]} 23. Be5 {[%clk 0:01:18]} 23...
Rb7 {[%clk 0:01:54.7]} 24. Qxa5 {[%clk 0:01:10]} 24... Bb5 {[%clk 0:01:53.7]}
25. R1xb5 {[%clk 0:00:33.1]} 25... cxb5 {[%clk 0:01:03.7]} 26. Qxb5 {[%clk
0:00:34]} 26... Rxb6 {[%clk 0:00:51.1]} 27. cxb6 {[%clk 0:00:34.9]} 27... Qxc2
{[%clk 0:00:50.1]} 28. b7 {[%clk 0:00:22.4]} 28... Qc1+ {[%clk 0:00:21.9]} 29.
Qf1 {[%clk 0:00:18.6]} 29... Qc5+ {[%clk 0:00:22.5]} 30. Kh1 {[%clk 0:00:16.9]}
30... Re8 {[%clk 0:00:20.3]} 31. b8=Q {[%clk 0:00:16.9]} 31... Rxb8 {[%clk
0:00:20.8]} 32. Bxb8 {[%clk 0:00:17.5]} 32... d4 {[%clk 0:00:21.2]} 33. Qa6
{[%clk 0:00:15.3]} 33... Qd5 {[%clk 0:00:13.5]} 34. Qc8+ {[%clk 0:00:14.4]}
34... Kf7 {[%clk 0:00:13]} 35. Qc7+ {[%clk 0:00:14.9]} 35... Kf8 {[%clk
0:00:12]} 36. Qd6+ {[%clk 0:00:14.4]} 36... Ke8 {[%clk 0:00:11.8]} 37. Qxd5
{[%clk 0:00:14.6]} 37... exd5 {[%clk 0:00:12.7]} 38. Be5 {[%clk 0:00:15.1]}
38... d3 {[%clk 0:00:11.5]} 39. Bc3 {[%clk 0:00:08.7]} 39... d4 {[%clk
0:00:11.7]} 40. Bb4 {[%clk 0:00:05.2]} 40... e3 {[%clk 0:00:12]} 41. Kg2 {[%clk
0:00:05.8]} 41... d2 {[%clk 0:00:12.5]} 0-1

[Event "Late-Titled-Tuesday-Blitz-April-30-2024"]
[Site "Chess.com"]
[Date "2024.04.30"]
[Round "4"]
[White "Sjakkerntobi"]
[Black "cristiano78"]
[Result "1-0"]
[WhiteElo "2500"]
[BlackElo "2288"]
[TimeControl "180+1"]
[EndTime "14:40:45 PDT"]
[Termination "Sjakkerntobi won by resignation"]

1. e4 {[%clk 0:03:00.9]} 1... c5 {[%clk 0:02:57.1]} 2. Nf3 {[%clk 0:03:00.8]}
2... d6 {[%clk 0:02:57.3]} 3. Bb5+ {[%clk 0:03:01.5]} 3... Bd7 {[%clk
0:02:57.2]} 4. Bxd7+ {[%clk 0:03:02]} 4... Qxd7 {[%clk 0:02:58]} 5. O-O {[%clk
0:03:02.7]} 5... Nc6 {[%clk 0:02:58.3]} 6. c3 {[%clk 0:03:03.1]} 6... e5 {[%clk
0:02:57.9]} 7. d4 {[%clk 0:03:02.8]} 7... cxd4 {[%clk 0:02:57.2]} 8. cxd4 {[%clk
0:03:03.7]} 8... Nf6 {[%clk 0:02:57.6]} 9. Nc3 {[%clk 0:03:03.9]} 9... Be7
{[%clk 0:02:56.9]} 10. dxe5 {[%clk 0:02:42.9]} 10... dxe5 {[%clk 0:02:56.3]} 11.
Qb3 {[%clk 0:02:32.5]} 11... Nd4 {[%clk 0:02:49.8]} 12. Nxd4 {[%clk 0:02:25.8]}
12... exd4 {[%clk 0:02:48.9]} 13. Nd5 {[%clk 0:02:24]} 13... Nxd5 {[%clk
0:02:48.1]} 14. exd5 {[%clk 0:02:24.4]} 14... Rd8 {[%clk 0:02:46.3]} 15. Re1
{[%clk 0:02:09.3]} 15... O-O {[%clk 0:02:44.1]} 16. Bf4 {[%clk 0:01:58.8]} 16...
Bc5 {[%clk 0:02:33.4]} 17. Bg5 {[%clk 0:01:44.9]} 17... f6 {[%clk 0:02:30.3]}
18. d6+ {[%clk 0:00:52.5]} 18... Kh8 {[%clk 0:02:29.7]} 19. Bf4 {[%clk
0:00:52.5]} 19... Bxd6 {[%clk 0:02:24.3]} 20. Bxd6 {[%clk 0:00:51.7]} 20... Qxd6
{[%clk 0:02:24.2]} 21. Qxb7 {[%clk 0:00:52.1]} 21... Rb8 {[%clk 0:02:17.1]} 22.
Qxa7 {[%clk 0:00:52.3]} 22... Rxb2 {[%clk 0:02:16.3]} 23. Rad1 {[%clk
0:00:46.7]} 23... d3 {[%clk 0:01:56.5]} 24. Qe7 {[%clk 0:00:24.1]} 24... Qxe7
{[%clk 0:01:52.3]} 25. Rxe7 {[%clk 0:00:25]} 25... Rxa2 {[%clk 0:01:48.6]} 26.
g3 {[%clk 0:00:24.5]} 26... Rd8 {[%clk 0:01:45.2]} 27. Rxd3 {[%clk 0:00:23.6]}
27... Rg8 {[%clk 0:01:22.5]} 28. Rdd7 {[%clk 0:00:23.4]} 28... h6 {[%clk
0:01:21.9]} 29. Kg2 {[%clk 0:00:23.3]} 29... Kh7 {[%clk 0:01:22.2]} 30. g4
{[%clk 0:00:23.8]} 30... Kg6 {[%clk 0:01:22.5]} 31. Kg3 {[%clk 0:00:23.7]} 31...
Ra3+ {[%clk 0:01:18.9]} 32. f3 {[%clk 0:00:23.9]} 32... Ra5 {[%clk 0:01:13.9]}
33. f4 {[%clk 0:00:18.6]} 33... f5 {[%clk 0:01:08.6]} 34. Rd6+ {[%clk
0:00:16.6]} 34... Kh7 {[%clk 0:01:08.4]} 35. g5 {[%clk 0:00:16.5]} 35... hxg5
{[%clk 0:01:08.5]} 36. fxg5 {[%clk 0:00:17.3]} 36... Ra4 {[%clk 0:01:03.1]} 37.
h4 {[%clk 0:00:15.7]} 37... Rg4+ {[%clk 0:00:59.7]} 38. Kh3 {[%clk 0:00:15.8]}
38... Rg1 {[%clk 0:00:44.4]} 39. Rf7 {[%clk 0:00:13.9]} 39... Rh1+ {[%clk
0:00:36.6]} 40. Kg3 {[%clk 0:00:13.4]} 40... Rg1+ {[%clk 0:00:36.2]} 41. Kh2
{[%clk 0:00:13.7]} 41... Rxg5 {[%clk 0:00:28.8]} 42. hxg5 {[%clk 0:00:13.4]}
42... Rc8 {[%clk 0:00:25.6]} 43. Rxf5 {[%clk 0:00:11.8]} 43... Rc2+ {[%clk
0:00:24.9]} 44. Kg3 {[%clk 0:00:12.3]} 44... Rc3+ {[%clk 0:00:24.9]} 45. Rf3
{[%clk 0:00:12.9]} 45... Rc5 {[%clk 0:00:24.5]} 46. Kg4 {[%clk 0:00:12.6]} 46...
Rc4+ {[%clk 0:00:23.8]} 47. Rf4 {[%clk 0:00:13]} 47... Rc6 {[%clk 0:00:23.8]}
48. Rxc6 {[%clk 0:00:12.6]} 1-0

[Event "Late-Titled-Tuesday-Blitz-April-30-2024"]
[Site "Chess.com"]
[Date "2024.04.30"]
[Round "4"]
[White "Mugiwara2b"]
[Black "Supelyel"]
[Result "1-0"]
[WhiteElo "2609"]
[BlackElo "2388"]
[TimeControl "180+1"]
[EndTime "14:40:46 PDT"]
[Termination "Mugiwara2b won by checkmate"]

1. d4 {[%clk 0:03:00.9]} 1... d6 {[%clk 0:02:59.4]} 2. Nf3 {[%clk 0:02:56.6]}
2... Nf6 {[%clk 0:02:58.8]} 3. Bg5 {[%clk 0:02:55.7]} 3... Nbd7 {[%clk
0:02:58.7]} 4. Nbd2 {[%clk 0:02:53.4]} 4... e5 {[%clk 0:02:49.3]} 5. dxe5 {[%clk
0:02:45.8]} 5... dxe5 {[%clk 0:02:39.3]} 6. e4 {[%clk 0:02:42]} 6... Be7 {[%clk
0:02:02.3]} 7. Bc4 {[%clk 0:02:33.6]} 7... O-O {[%clk 0:02:01.6]} 8. O-O {[%clk
0:02:25.6]} 8... c6 {[%clk 0:01:57.2]} 9. c3 {[%clk 0:02:24]} 9... Qc7 {[%clk
0:01:53.7]} 10. Qe2 {[%clk 0:02:20.6]} 10... b5 {[%clk 0:01:50.9]} 11. Bb3
{[%clk 0:02:20.6]} 11... Nc5 {[%clk 0:01:50.3]} 12. Bc2 {[%clk 0:02:20.3]} 12...
Bg4 {[%clk 0:01:48.5]} 13. h3 {[%clk 0:02:17]} 13... Bh5 {[%clk 0:01:32.9]} 14.
Nb3 {[%clk 0:02:09.8]} 14... Ne6 {[%clk 0:01:27.2]} 15. Bxf6 {[%clk 0:02:07.1]}
15... Bxf6 {[%clk 0:01:26.6]} 16. Qe3 {[%clk 0:01:49.2]} 16... Be7 {[%clk
0:01:14]} 17. g3 {[%clk 0:01:44.1]} 17... Rae8 {[%clk 0:00:46.6]} 18. Rfe1
{[%clk 0:01:31.6]} 18... h6 {[%clk 0:00:46.3]} 19. Bd3 {[%clk 0:01:25.5]} 19...
Bd6 {[%clk 0:00:44.7]} 20. Bf1 {[%clk 0:01:23]} 20... Qe7 {[%clk 0:00:44.7]} 21.
Bg2 {[%clk 0:01:19.4]} 21... Kh8 {[%clk 0:00:26.6]} 22. a4 {[%clk 0:01:16.5]}
22... a6 {[%clk 0:00:19.4]} 23. axb5 {[%clk 0:01:16.1]} 23... axb5 {[%clk
0:00:20.3]} 24. Ra7 {[%clk 0:01:15.6]} 24... Qf6 {[%clk 0:00:20.9]} 25. Nh4
{[%clk 0:01:07.7]} 25... Rc8 {[%clk 0:00:15.4]} 26. Nf5 {[%clk 0:01:07.1]} 26...
Bb8 {[%clk 0:00:14.5]} 27. Raa1 {[%clk 0:00:53.6]} 27... Bg6 {[%clk 0:00:14.8]}
28. Nh4 {[%clk 0:00:46.1]} 28... Bh7 {[%clk 0:00:14.9]} 29. Nc5 {[%clk
0:00:42.5]} 29... Nxc5 {[%clk 0:00:13.1]} 30. Qxc5 {[%clk 0:00:43.4]} 30... Bd6
{[%clk 0:00:13.5]} 31. Qb6 {[%clk 0:00:41.3]} 31... Rc7 {[%clk 0:00:12.7]} 32.
Red1 {[%clk 0:00:39.3]} 32... Qe7 {[%clk 0:00:12.6]} 33. Nf5 {[%clk 0:00:38.4]}
33... Bxf5 {[%clk 0:00:12.3]} 34. exf5 {[%clk 0:00:39.3]} 34... Bc5 {[%clk
0:00:13]} 35. Qa6 {[%clk 0:00:35.5]} 35... e4 {[%clk 0:00:13.4]} 36. Qa2 {[%clk
0:00:33.2]} 36... e3 {[%clk 0:00:13.3]} 37. fxe3 {[%clk 0:00:33.5]} 37... Qxe3+
{[%clk 0:00:13.4]} 38. Kh2 {[%clk 0:00:34.2]} 38... Qe5 {[%clk 0:00:12.5]} 39.
Rf1 {[%clk 0:00:31.2]} 39... Bd6 {[%clk 0:00:12.8]} 40. Rf3 {[%clk 0:00:31.8]}
40... Re7 {[%clk 0:00:13.3]} 41. Qb1 {[%clk 0:00:29.9]} 41... Bc7 {[%clk
0:00:13.6]} 42. Qc1 {[%clk 0:00:28.8]} 42... Qf6 {[%clk 0:00:13.5]} 43. Qc2
{[%clk 0:00:25.6]} 43... Rfe8 {[%clk 0:00:14]} 44. Rd1 {[%clk 0:00:22.9]} 44...
h5 {[%clk 0:00:14.4]} 45. Kh1 {[%clk 0:00:20.5]} 45... Qg5 {[%clk 0:00:14.3]}
46. Rdf1 {[%clk 0:00:19.4]} 46... Bxg3 {[%clk 0:00:12.8]} 47. f6 {[%clk
0:00:19.4]} 47... Re1 {[%clk 0:00:13.4]} 48. fxg7+ {[%clk 0:00:18.4]} 48... Kxg7
{[%clk 0:00:13.8]} 49. Rxf7+ {[%clk 0:00:15.3]} 49... Kg8 {[%clk 0:00:13]} 50.
Qh7# {[%clk 0:00:16]} 1-0

[Event "Late-Titled-Tuesday-Blitz-April-30-2024"]
[Site "Chess.com"]
[Date "2024.04.30"]
[Round "4"]
[White "JiangoFett"]
[Black "MiguelBestard1981"]
[Result "1-0"]
[WhiteElo "2458"]
[BlackElo "2141"]
[TimeControl "180+1"]
[EndTime "14:40:46 PDT"]
[Termination "JiangoFett won by checkmate"]

1. c4 {[%clk 0:03:00.9]} 1... c6 {[%clk 0:02:58.9]} 2. Nf3 {[%clk 0:02:58.3]}
2... d5 {[%clk 0:02:59.8]} 3. e3 {[%clk 0:02:57.5]} 3... Nf6 {[%clk 0:02:58]} 4.
b3 {[%clk 0:02:58.1]} 4... Bf5 {[%clk 0:02:55.6]} 5. Bb2 {[%clk 0:02:58.3]} 5...
h6 {[%clk 0:02:55.1]} 6. Nc3 {[%clk 0:02:57.8]} 6... e6 {[%clk 0:02:55.5]} 7. d4
{[%clk 0:02:56.9]} 7... Nbd7 {[%clk 0:02:55.1]} 8. Be2 {[%clk 0:02:50.5]} 8...
Bd6 {[%clk 0:02:54.5]} 9. O-O {[%clk 0:02:50.7]} 9... Ne4 {[%clk 0:02:54.2]} 10.
Bd3 {[%clk 0:02:31.8]} 10... Qf6 {[%clk 0:02:48.9]} 11. Ne2 {[%clk 0:02:27.9]}
11... h5 {[%clk 0:02:43.6]} 12. Ne1 {[%clk 0:01:55.7]} 12... Rh6 {[%clk
0:02:20.1]} 13. f3 {[%clk 0:01:52.6]} 13... Qh4 {[%clk 0:02:07.7]} 14. Nf4
{[%clk 0:01:17.1]} 14... g5 {[%clk 0:01:46.9]} 15. g3 {[%clk 0:00:48.4]} 15...
Nxg3 {[%clk 0:01:46.4]} 16. Neg2 {[%clk 0:00:48.9]} 16... Nxf1 {[%clk
0:01:36.4]} 17. Nxh4 {[%clk 0:00:48.8]} 17... Nxe3 {[%clk 0:01:36.5]} 18. Qe2
{[%clk 0:00:30]} 18... gxf4 {[%clk 0:01:36.1]} 19. Bxf5 {[%clk 0:00:25.5]} 19...
exf5 {[%clk 0:01:34.1]} 20. Nxf5 {[%clk 0:00:24.8]} 20... Rg6+ {[%clk
0:01:31.9]} 21. Kh1 {[%clk 0:00:25.4]} 21... O-O-O {[%clk 0:01:19.3]} 22. Nxe3
{[%clk 0:00:20.3]} 22... fxe3 {[%clk 0:01:17.3]} 23. cxd5 {[%clk 0:00:20.8]}
23... cxd5 {[%clk 0:00:59.5]} 24. Rg1 {[%clk 0:00:21.4]} 24... Rxg1+ {[%clk
0:00:55.2]} 25. Kxg1 {[%clk 0:00:22.3]} 25... Re8 {[%clk 0:00:54.9]} 26. Qc2+
{[%clk 0:00:20.5]} 26... Kb8 {[%clk 0:00:54.3]} 27. Bc3 {[%clk 0:00:20.8]} 27...
h4 {[%clk 0:00:40.4]} 28. Qf5 {[%clk 0:00:20.2]} 28... Kc7 {[%clk 0:00:36.4]}
29. Qxf7 {[%clk 0:00:19.5]} 29... Re7 {[%clk 0:00:32.6]} 30. Qg7 {[%clk
0:00:19.7]} 30... e2 {[%clk 0:00:32]} 31. Qg5 {[%clk 0:00:16.7]} 31... e1=Q+
{[%clk 0:00:30.2]} 32. Bxe1 {[%clk 0:00:17.2]} 32... Rxe1+ {[%clk 0:00:30.4]}
33. Kf2 {[%clk 0:00:17.9]} 33... Rh1 {[%clk 0:00:26.1]} 34. Qxd5 {[%clk
0:00:17.4]} 34... Rxh2+ {[%clk 0:00:25.6]} 35. Ke3 {[%clk 0:00:17.9]} 35... h3
{[%clk 0:00:22.2]} 36. Qc4+ {[%clk 0:00:18]} 36... Kb8 {[%clk 0:00:20.9]} 37.
Qg8+ {[%clk 0:00:17.9]} 37... Kc7 {[%clk 0:00:20.2]} 38. Qc4+ {[%clk 0:00:18.6]}
38... Kd8 {[%clk 0:00:19.9]} 39. Qg8+ {[%clk 0:00:18.9]} 39... Nf8 {[%clk
0:00:18.9]} 40. Qg5+ {[%clk 0:00:18.9]} 40... Ke8 {[%clk 0:00:17.9]} 41. Qd5
{[%clk 0:00:17.3]} 41... Kd7 {[%clk 0:00:16.8]} 42. Qxb7+ {[%clk 0:00:17.5]}
42... Ke6 {[%clk 0:00:16.5]} 43. d5+ {[%clk 0:00:17.3]} 43... Ke5 {[%clk
0:00:13.8]} 44. f4+ {[%clk 0:00:17.8]} 44... Kf5 {[%clk 0:00:12.8]} 45. Qf7+
{[%clk 0:00:18.2]} 45... Kg4 {[%clk 0:00:12.9]} 46. Qg8+ {[%clk 0:00:16.4]}
46... Kh5 {[%clk 0:00:10.6]} 47. Qg5# {[%clk 0:00:15.5]} 1-0

[Event "Late-Titled-Tuesday-Blitz-April-30-2024"]
[Site "Chess.com"]
[Date "2024.04.30"]
[Round "4"]
[White "Aalessia"]
[Black "JonasEilenberg"]
[Result "0-1"]
[WhiteElo "2377"]
[BlackElo "2560"]
[TimeControl "180+1"]
[EndTime "14:40:47 PDT"]
[Termination "JonasEilenberg won by resignation"]

1. Nf3 {[%clk 0:02:52.1]} 1... d5 {[%clk 0:03:00.1]} 2. e3 {[%clk 0:02:50.1]}
2... e6 {[%clk 0:02:53.7]} 3. c4 {[%clk 0:02:50.4]} 3... c5 {[%clk 0:02:53.8]}
4. cxd5 {[%clk 0:02:48.9]} 4... exd5 {[%clk 0:02:54.7]} 5. Bb5+ {[%clk
0:02:47.9]} 5... Bd7 {[%clk 0:02:54.4]} 6. Be2 {[%clk 0:02:46.7]} 6... Nf6
{[%clk 0:02:54.5]} 7. Nc3 {[%clk 0:02:46]} 7... Nc6 {[%clk 0:02:54.7]} 8. d4
{[%clk 0:02:46]} 8... Be6 {[%clk 0:02:47.3]} 9. O-O {[%clk 0:02:45.7]} 9... c4
{[%clk 0:02:47.6]} 10. b3 {[%clk 0:02:38.9]} 10... Bb4 {[%clk 0:02:47.5]} 11.
Bb2 {[%clk 0:02:34]} 11... Bxc3 {[%clk 0:02:47.6]} 12. Bxc3 {[%clk 0:02:34.9]}
12... b5 {[%clk 0:02:48.1]} 13. bxc4 {[%clk 0:02:29.7]} 13... bxc4 {[%clk
0:02:49]} 14. Qa4 {[%clk 0:02:24.6]} 14... Qd7 {[%clk 0:02:48.5]} 15. Rab1
{[%clk 0:02:13.9]} 15... O-O {[%clk 0:02:48.1]} 16. Rb2 {[%clk 0:02:14]} 16...
Ne4 {[%clk 0:02:44.6]} 17. Bb4 {[%clk 0:02:03.5]} 17... Rfb8 {[%clk 0:02:36.6]}
18. Rfb1 {[%clk 0:01:42.9]} 18... Nxd4 {[%clk 0:02:26.4]} 19. Qxd7 {[%clk
0:01:35]} 19... Nxe2+ {[%clk 0:02:26.5]} 20. Rxe2 {[%clk 0:01:30.7]} 20... Bxd7
{[%clk 0:02:27.4]} 21. Reb2 {[%clk 0:01:24.1]} 21... f6 {[%clk 0:02:05]} 22. Nd4
{[%clk 0:01:17.9]} 22... a5 {[%clk 0:02:03.4]} 23. Be1 {[%clk 0:01:17]} 23...
Rxb2 {[%clk 0:01:59.1]} 24. Rxb2 {[%clk 0:01:17.9]} 24... Rc8 {[%clk 0:01:45.7]}
25. Bxa5 {[%clk 0:01:14.6]} 25... c3 {[%clk 0:01:44.7]} 26. Rc2 {[%clk
0:01:13.7]} 26... Ba4 {[%clk 0:01:41.3]} 27. Nb3 {[%clk 0:01:13.8]} 27... Bxb3
{[%clk 0:01:38.5]} 28. axb3 {[%clk 0:01:13.8]} 28... Ra8 {[%clk 0:01:30.8]} 29.
f3 {[%clk 0:01:08.9]} 29... Nc5 {[%clk 0:00:58.7]} 30. Rxc3 {[%clk 0:01:05.7]}
30... Rxa5 {[%clk 0:00:58.1]} 31. b4 {[%clk 0:01:04.9]} 31... Ra1+ {[%clk
0:00:58.4]} 32. Kf2 {[%clk 0:01:03.5]} 32... Ne6 {[%clk 0:00:59]} 33. Rb3 {[%clk
0:00:53.5]} 33... Ra2+ {[%clk 0:00:51.9]} 34. Kg3 {[%clk 0:00:52.5]} 34... Ra6
{[%clk 0:00:47.7]} 35. Rd3 {[%clk 0:00:47]} 35... Rb6 {[%clk 0:00:47.4]} 36.
Rxd5 {[%clk 0:00:47.1]} 36... Rxb4 {[%clk 0:00:47.7]} 37. h4 {[%clk 0:00:41.4]}
37... Rb7 {[%clk 0:00:46.5]} 38. Rd6 {[%clk 0:00:35.2]} 38... Kf7 {[%clk
0:00:46.8]} 39. Kh3 {[%clk 0:00:34]} 39... Ke7 {[%clk 0:00:45.1]} 40. Rd3 {[%clk
0:00:33.1]} 40... Rd7 {[%clk 0:00:44.2]} 41. Rb3 {[%clk 0:00:31.7]} 41... Kf7
{[%clk 0:00:43.2]} 42. Rb6 {[%clk 0:00:30.7]} 42... g6 {[%clk 0:00:41.2]} 43.
Kg3 {[%clk 0:00:28.2]} 43... f5 {[%clk 0:00:41]} 44. Rb3 {[%clk 0:00:24.7]}
44... Kf6 {[%clk 0:00:41.1]} 45. Kh3 {[%clk 0:00:24]} 45... Rd1 {[%clk
0:00:37.6]} 46. Kg3 {[%clk 0:00:23.9]} 46... Rh1 {[%clk 0:00:31.6]} 47. Rb4
{[%clk 0:00:22.9]} 47... Ng7 {[%clk 0:00:25.8]} 48. Rb6+ {[%clk 0:00:20.1]}
48... Ne6 {[%clk 0:00:25.3]} 49. Rb4 {[%clk 0:00:18.9]} 49... Rc1 {[%clk
0:00:24]} 50. Kf2 {[%clk 0:00:18.7]} 50... Rc2+ {[%clk 0:00:24.3]} 51. Kg3
{[%clk 0:00:18.9]} 51... Re2 {[%clk 0:00:24.9]} 52. Rb3 {[%clk 0:00:17.9]} 52...
Rxe3 {[%clk 0:00:24.8]} 53. Rxe3 {[%clk 0:00:17.3]} 53... f4+ {[%clk 0:00:25.4]}
0-1

[Event "Late-Titled-Tuesday-Blitz-April-30-2024"]
[Site "Chess.com"]
[Date "2024.04.30"]
[Round "4"]
[White "cthake"]
[Black "FMOlexandrProhorov"]
[Result "0-1"]
[WhiteElo "1860"]
[BlackElo "2246"]
[TimeControl "180+1"]
[EndTime "14:40:47 PDT"]
[Termination "FMOlexandrProhorov won by checkmate"]

1. e4 {[%clk 0:03:00.9]} 1... d5 {[%clk 0:02:55.8]} 2. exd5 {[%clk 0:02:59.7]}
2... Nf6 {[%clk 0:02:51.4]} 3. d4 {[%clk 0:02:57.4]} 3... Nxd5 {[%clk
0:02:51.1]} 4. Nf3 {[%clk 0:02:42.9]} 4... g6 {[%clk 0:02:50.1]} 5. Bd3 {[%clk
0:02:42.5]} 5... Bg7 {[%clk 0:02:49.7]} 6. O-O {[%clk 0:02:39.9]} 6... O-O
{[%clk 0:02:49.3]} 7. c3 {[%clk 0:02:38.6]} 7... c5 {[%clk 0:02:43.5]} 8. dxc5
{[%clk 0:02:32.4]} 8... Qc7 {[%clk 0:02:16.6]} 9. Be4 {[%clk 0:02:27.6]} 9...
Nf6 {[%clk 0:02:14.4]} 10. Bd3 {[%clk 0:02:11.5]} 10... Qxc5 {[%clk 0:02:11.3]}
11. Be3 {[%clk 0:02:09.8]} 11... Qh5 {[%clk 0:02:10.2]} 12. Be2 {[%clk
0:02:06.2]} 12... Nc6 {[%clk 0:02:02]} 13. Nd4 {[%clk 0:02:02.1]} 13... Qe5
{[%clk 0:01:40.2]} 14. Nxc6 {[%clk 0:01:59.5]} 14... bxc6 {[%clk 0:01:38.5]} 15.
Qd4 {[%clk 0:01:59.3]} 15... Qxd4 {[%clk 0:01:21]} 16. Bxd4 {[%clk 0:01:59.1]}
16... Nd5 {[%clk 0:01:16.7]} 17. Bxg7 {[%clk 0:01:57]} 17... Kxg7 {[%clk
0:01:17.6]} 18. Bf3 {[%clk 0:01:54]} 18... e5 {[%clk 0:01:17.5]} 19. Na3 {[%clk
0:01:51]} 19... Be6 {[%clk 0:01:16.3]} 20. Nc4 {[%clk 0:01:48.7]} 20... f6
{[%clk 0:01:15.6]} 21. Ne3 {[%clk 0:01:36.2]} 21... Rfd8 {[%clk 0:01:11.3]} 22.
Nxd5 {[%clk 0:01:27.3]} 22... cxd5 {[%clk 0:01:10.7]} 23. c4 {[%clk 0:01:20.3]}
23... e4 {[%clk 0:01:06.2]} 24. cxd5 {[%clk 0:01:17]} 24... Bxd5 {[%clk
0:01:06.2]} 25. Be2 {[%clk 0:01:15.7]} 25... f5 {[%clk 0:01:06.1]} 26. Rfd1
{[%clk 0:01:14]} 26... Rab8 {[%clk 0:01:02.3]} 27. b3 {[%clk 0:01:11.1]} 27...
Kf6 {[%clk 0:01:01.6]} 28. Rac1 {[%clk 0:01:08.2]} 28... Be6 {[%clk 0:00:52.4]}
29. g3 {[%clk 0:01:07.9]} 29... Rbc8 {[%clk 0:00:51.5]} 30. Kg2 {[%clk
0:01:05.2]} 30... g5 {[%clk 0:00:51.2]} 31. h3 {[%clk 0:01:04.5]} 31... f4
{[%clk 0:00:51.2]} 32. gxf4 {[%clk 0:00:51.3]} 32... gxf4 {[%clk 0:00:49.8]} 33.
Bg4 {[%clk 0:00:51.2]} 33... Rxc1 {[%clk 0:00:43.1]} 34. Rxc1 {[%clk 0:00:49.8]}
34... Bf7 {[%clk 0:00:39.1]} 35. Rc6+ {[%clk 0:00:48.4]} 35... Ke5 {[%clk
0:00:38.5]} 36. Rc7 {[%clk 0:00:45.5]} 36... Bg6 {[%clk 0:00:35.3]} 37. Rxa7
{[%clk 0:00:44.6]} 37... Rd2 {[%clk 0:00:33.8]} 38. Ra5+ {[%clk 0:00:42.2]}
38... Kd4 {[%clk 0:00:32.9]} 39. Be6 {[%clk 0:00:38]} 39... Kc3 {[%clk
0:00:28.6]} 40. Rc5+ {[%clk 0:00:30.5]} 40... Kb2 {[%clk 0:00:22.7]} 41. b4
{[%clk 0:00:30.5]} 41... e3 {[%clk 0:00:21.8]} 42. b5 {[%clk 0:00:24.2]} 42...
Rxf2+ {[%clk 0:00:20.4]} 43. Kg1 {[%clk 0:00:23.1]} 43... Be4 {[%clk 0:00:18.8]}
44. b6 {[%clk 0:00:21.1]} 44... Rg2+ {[%clk 0:00:18.6]} 45. Kf1 {[%clk
0:00:20.1]} 45... e2+ {[%clk 0:00:18.6]} 46. Ke1 {[%clk 0:00:20.2]} 46... f3
{[%clk 0:00:18.2]} 47. Rb5+ {[%clk 0:00:18.1]} 47... Kc3 {[%clk 0:00:17.9]} 48.
b7 {[%clk 0:00:18.1]} 48... Rg1+ {[%clk 0:00:17.1]} 49. Kf2 {[%clk 0:00:16.8]}
49... e1=Q# {[%clk 0:00:17.1]} 0-1